[Event "Prague Festival Open 2022"]
[Site "Prague"]
[Date "2022.06.12"]
[Round "4.3"]
[White "Moksh Amit Doshi"]
[Black "Stremavicius, Titas"]
[Result "0-1"]
[ECO "E02"]
[WhiteElo "2398"]
[BlackElo "2508"]
[Annotator "TA"]
[PlyCount "152"]
[EventDate "2022.06.10"]
[EventType "swiss"]
[EventCountry "CZE"]
[SourceTitle "playchess.com"]
[Source "ChessBase"]
[SourceQuality "1"]
[TimeControl "40/5400+30:1800+30"]

{[%evp 21,152,-10,0,0,31,22,32,4,23,0,0,0,0,0,0,13,14,-13,8,0,0,0,0,0,0,0,-3,-3,-3,-3,0,0,0,0,0,0,0,0,0,-12,-9,-45,-45,-45,-27,-155,-122,-152,-152,-152,-144,-137,-131,-103,-12,-12,-12,-12,-12,-12,-12,-12,-12,-12,0,0,0,0,0,-23,-23,-23,-23,-23,-8,-8,0,-23,-23,-23,-23,-23,-8,-23,-23,-23,0,-134,-23,-23,-8,-23,8,-23,0,-134,-134,-2044,-264,-276,-285,-290,-298,-872,-683,-4779,-1872,-29961,-29960,-29956,-29958,-29960,-29941,-29970,-29971,-29970,-29971,-29971,-29971,-29971,-29972,-29974,-29975,-29975,-29977,-29980,-29981,-29984,-29985,-29985,-29986,-29986,-29984]} 1. d4 {[%emt 0:03:52]} d5 {[%emt 0:00:22]} 2. c4 {[%emt 0:00:07]} e6 {[%emt 0:00:04]} 3. Nf3 {[%emt 0:00:07]} Nf6 {[%emt 0:00:08]} 4. g3 {[%emt 0:00:15]} dxc4 {[%emt 0:01:46]} 5. Qa4+ {[%emt 0:00:42]} Nbd7 {[%emt 0:01:15]} 6. Bg2 {[%emt 0:00:40]} a6 {[%emt 0:00:36]} 7. Nc3 {[%emt 0:00:39]} Rb8 {[%emt 0:02:27]} 8. Qxc4 {[%emt 0:01:03]} b5 {[%emt 0:00:12]} 9. Qd3 {[%emt 0:00:06]} Bb7 {[%emt 0:00:28]} 10. O-O {[%emt 0:00:51]} c5 {[%emt 0:04:30]} 11. Bf4 {[%emt 0:01:06]} Rc8 {[%emt 0:00:16]} 12. dxc5 {[%emt 0:01:56] E02: Open Catalan: 5 Qa4+.} (12. Rac1 {with more complications.} cxd4 13. Qxd4 Bc5 14. Qd3) 12... Nxc5 {[%emt 0:02:42]} 13. Qxd8+ {[%emt 0:06:40]} Rxd8 {[%emt 0:00:21] [#]} 14. a3 $146 {[%emt 0:06:24] White is slightly better.} ({Predecessor:} 14. Rfd1 Rxd1+ 15. Rxd1 b4 16. Nb1 Nd5 17. Ne5 f6 18. Nc4 Nxf4 19. gxf4 Bxg2 20. Kxg2 {1-0 (57) Saric,A (2584)-Luch,M (2449) Chess.com INT 2015}) 14... Rc8 {[%emt 0:08:56]} 15. Rad1 {[%emt 0:17:58]} Be7 {[%emt 0:00:24]} 16. Ne5 {[%emt 0:01:22]} Bxg2 {[%emt 0:01:33]} 17. Kxg2 {[%emt 0:00:05]} O-O {[%emt 0:07:53]} 18. b4 {[%emt 0:08:51]} Nb7 {[%emt 0:04:11][%cal Bc5b7,Bb7d6,Bd6e4][%mdl 32]} 19. Rd3 {[%emt 0:05:42]} Nd6 {[%emt 0:03:47]} 20. f3 {[%emt 0:20:35]} Rfd8 {[%emt 0:08:47]} 21. Rfd1 {[%emt 0:01:47]} Nfe8 {[%emt 0:00:39]} 22. Ne4 {[%emt 0:05:08]} Nxe4 {[%emt 0:13:01]} 23. Rxd8 {[%emt 0:00:45]} Rxd8 {[%emt 0:00:23]} 24. Rxd8 {[%emt 0:00:11]} Bxd8 {[%emt 0:00:04]} 25. fxe4 $11 {[%emt 0:00:09][%mdl 4096] Endgame KBN-KBN} Bf6 {[%emt 0:00:06] Hoping for ...g5.} 26. Nd3 {[%emt 0:00:51]} Kf8 {[%emt 0:00:34]} 27. Kf3 {[%emt 0:02:36]} Bc3 {[%emt 0:03:16]} 28. Be3 {[%emt 0:06:52]} Ke7 {[%emt 0:04:12]} 29. e5 {[%emt 0:00:04] Prevents Nd6.} Nc7 {[%emt 0:02:48]} 30. Bc5+ {[%emt 0:01:37]} Kd7 {[%emt 0:00:53]} 31. Bf8 {[%emt 0:00:22]} g6 {[%emt 0:03:13]} 32. Bd6 {[%emt 0:01:09]} Nd5 {[%emt 0:01:33]} 33. e4 {[%emt 0:00:20] [#]} (33. Nc5+ $11 {keeps the balance.} Kc6 34. Nxa6) 33... Nb6 $1 $17 {[%emt 0:00:15]} 34. Nc5+ {[%emt 0:01:18]} Kc6 {[%emt 0:01:45]} 35. Nxa6 {[%emt 0:01:37]} Nc4 {[%emt 0:04:06][%csl LRa3,LRd6,LRe5]} 36. Nb8+ {[%emt 0:00:45] [#]} Kb7 $1 {[%emt 0:00:10]} 37. Nd7 {[%emt 0:00:08]} Nxd6 {[%emt 0:00:40]} ({Black should play} 37... Kc8 $17 38. Nc5 Nxa3) 38. exd6 {[%emt 0:00:06] KB-KN} Kc6 {[%emt 0:00:04][%csl LRd6,LRd7]} 39. Nc5 {[%emt 0:02:38]} Kxd6 {[%emt 0:00:09]} 40. Nd3 {[%emt 0:00:31]} h5 {[%emt 0:02:41]} 41. h3 {[%emt 0:30:07]} Bd2 {[%emt 0:30:35]} 42. g4 {[%emt 0:00:39]} e5 {[%emt 0:02:29]} 43. gxh5 {[%emt 0:00:25]} gxh5 {[%emt 0:00:07]} 44. Ke2 {[%emt 0:00:27]} Bc3 {[%emt 0:02:51]} 45. Ke3 {[%emt 0:00:36]} Bd4+ {[%emt 0:00:11]} 46. Kf3 {[%emt 0:00:06]} Ke6 {[%emt 0:00:04]} 47. Ke2 {[%emt 0:02:43]} Kf6 {[%emt 0:00:41]} 48. Kf3 {[%emt 0:00:14]} Kg5 {[%emt 0:00:31]} 49. Kg3 {[%emt 0:00:51]} f5 {[%emt 0:01:09]} 50. h4+ {[%emt 0:00:25]} Kf6 {[%emt 0:00:25]} 51. Kf3 {[%emt 0:00:05]} Bc3 {[%emt 0:05:49]} 52. Ke3 {[%emt 0:00:28]} Ba1 {[%emt 0:00:15]} 53. Kf3 {[%emt 0:00:46]} Bd4 {[%emt 0:00:08]} 54. Ne1 {[%emt 0:00:00]} (54. exf5 $1 $11 Kxf5 55. Nc5) 54... Bc3 {[%emt 0:00:00]} (54... Bb2 $17 55. Ng2 Bc1) 55. Nd3 $11 {[%emt 0:00:00]} Bd2 {[%emt 0:00:00]} 56. Nc5 {[%emt 0:00:00]} Bc3 {[%emt 0:00:00]} 57. Nd3 {[%emt 0:00:00]} Bd4 {[%emt 0:00:00]} (57... f4 $11) 58. Ne1 $17 {[%emt 0:00:00]} Bb2 {[%emt 0:00:00]} 59. Nd3 $2 {[%emt 0:00:00][%mdl 8192] This costs White the game.} (59. Nc2 $17) 59... Bxa3 $2 {[%emt 0:00:00]} (59... fxe4+ 60. Kxe4 Bxa3 61. Nxe5 Bxb4 62. Nd7+ Kg7) 60. Ke3 $19 {[%emt 0:00:00]} Ke6 {[%emt 0:00:00] White must now prevent ...fxe4.} 61. Nc5+ {[%emt 0:00:00]} Ke7 {[%emt 0:00:00]} 62. Nd3 $2 {[%emt 0:00:00]} (62. exf5 Bxb4 63. Ne4) 62... fxe4 {[%emt 0:00:00]} 63. Nxe5 {[%emt 0:00:00]} Ke6 {[%emt 0:00:00]} 64. Kxe4 {[%emt 0:00:00]} Bxb4 {[%emt 0:00:00] Black mates.} 65. Nd3 {[%emt 0:00:00]} Bd6 {[%emt 0:00:00]} 66. Ne1 {[%emt 0:00:00]} Bg3 {[%emt 0:00:00]} 67. Nf3 {[%emt 0:00:00]} b4 {[%emt 0:02:15]} 68. Nd4+ {[%emt 0:00:00]} Kf6 {[%emt 0:00:28]} 69. Nf3 {[%emt 0:00:00]} Bf2 {[%emt 0:02:00]} 70. Nd2 {[%emt 0:02:11]} Bxh4 {[%emt 0:00:21]} 71. Kf3 {[%emt 0:00:05]} Ke5 {[%emt 0:01:37]} 72. Nb3 {[%emt 0:00:08]} Bg5 {[%emt 0:01:42]} 73. Kg3 {[%emt 0:00:06]} Kd5 {[%emt 0:00:11]} 74. Kh3 {[%emt 0:00:06]} Kc4 {[%emt 0:00:41]} 75. Na5+ {[%emt 0:00:05]} Kc3 {[%emt 0:00:32]} 76. Kg3 {[%emt 0:00:05]} Bd8 {[%emt 0:00:13] Weighted Error Value: White=0.30/Black=0.32} 0-1

[Event "Prague Festival Open 2022"]
[Site "Prague"]
[Date "2022.06.12"]
[Round "4.4"]
[White "Garriga Cazorla, Pere"]
[Black "Suarez Uriel, Adrian"]
[Result "1-0"]
[ECO "D85"]
[WhiteElo "2495"]
[BlackElo "2370"]
[Annotator "TA"]
[PlyCount "103"]
[EventDate "2022.06.10"]
[EventType "swiss"]
[EventCountry "CZE"]
[SourceTitle "playchess.com"]
[Source "ChessBase"]
[SourceQuality "1"]
[TimeControl "40/5400+30:1800+30"]

{[%evp 15,103,10,25,9,8,12,8,7,31,23,18,0,0,-2,37,15,76,64,77,56,88,0,66,85,60,56,85,47,160,160,163,166,161,158,158,170,237,219,214,217,189,181,184,179,178,0,0,0,660,656,656,652,651,636,1142,1050,1039,1012,999,994,946,566,938,919,1845,1147,1641,979,1631,1554,1459,1429,1675,1616,1549,1338,3296,2960,2069,1983,2328,2258,2333,2285,3216,2694,12842,12843,12843,12843]} 1. d4 {[%emt 0:01:48]} Nf6 {[%emt 0:07:56]} 2. c4 {[%emt 0:00:05]} g6 {[%emt 0:00:06]} 3. Nc3 {[%emt 0:00:05]} d5 {[%emt 0:00:04]} 4. cxd5 {[%emt 0:00:05]} Nxd5 {[%emt 0:00:05]} 5. e4 {[%emt 0:00:05]} Nxc3 {[%emt 0:00:04]} 6. bxc3 {[%emt 0:00:04]} Bg7 {[%emt 0:00:05]} 7. Qa4+ {[%emt 0:00:05] 7.Nf3 gains popularity.} Nd7 {[%emt 0:00:23]} 8. Nf3 {[%emt 0:00:40]} O-O {[%emt 0:00:05]} 9. Qa3 {[%emt 0:00:03] D85: Exchange Grünfeld: Unusual White 7th moves and lines with 7 Nf3.} c5 {[%emt 0:08:03]} 10. Be2 {[%emt 0:00:23]} Qc7 {[%emt 0:06:08] [#]} 11. Be3 $146 {[%emt 0:19:16] The position is equal.} ({Predecessor:} 11. O-O Nf6 12. e5 Nd5 13. dxc5 a5 14. Bd2 Bd7 15. Bc4 e6 16. Bxd5 exd5 17. Rab1 Bf5 {½-½ (40) Gajewski,G (2623)-Tomczak,J (2625) Germany 2021}) 11... Rb8 {[%emt 0:06:26]} 12. Rb1 {[%emt 0:07:13]} ({Don't blunder} 12. Qxa7 $2 cxd4 13. Bd2 (13. Bxd4 $2 e5 $19) 13... dxc3 $19) ({But not} 12. dxc5 b6 $15) 12... a6 {[%emt 0:03:39]} 13. dxc5 {[%emt 0:12:00]} Nf6 {[%emt 0:10:55]} 14. Nd2 {[%emt 0:09:04]} Bd7 {[%emt 0:00:32]} 15. O-O {[%emt 0:01:32]} Bc6 {[%emt 0:00:03]} (15... Rfc8 $11 {keeps the balance.}) 16. f3 $16 {[%emt 0:02:36]} Nh5 {[%emt 0:00:07] And now ...Be5 would win.} 17. f4 {[%emt 0:05:04] Against Be5} Rbd8 {[%emt 0:02:56]} 18. Qb4 {[%emt 0:01:30]} (18. e5 $16) 18... e5 {[%emt 0:07:50]} (18... Nf6 $11) 19. Bxh5 $14 {[%emt 0:04:47]} gxh5 {[%emt 0:02:03]} 20. Rbe1 {[%emt 0:05:14]} (20. f5 $5 {[%cal Rf5f6]}) 20... Rd3 {[%emt 0:07:51]} 21. f5 {[%emt 0:03:46]} Qd8 {[%emt 0:16:02] [#]} (21... Rc8 $14) 22. Nc4 $1 $16 {[%emt 0:04:45]} Qf6 {[%emt 0:15:10]} 23. Nd6 {[%emt 0:02:10]} Bh6 {[%emt 0:00:04]} 24. Bxh6 {[%emt 0:02:57]} Qxh6 {[%emt 0:00:01]} 25. Qb2 {[%emt 0:00:13] White is more active.} Qd2 {[%emt 0:01:42]} (25... Qg5 $142 26. Re2 h6) 26. Qxd2 $18 {[%emt 0:00:30]} Rxd2 {[%emt 0:00:02]} 27. f6 {[%emt 0:00:07]} h6 {[%emt 0:02:42]} 28. Re3 {[%emt 0:01:47]} Kh7 {[%emt 0:00:05] [#]} 29. Rg3 $1 {[%emt 0:03:38]} Rg8 {[%emt 0:00:04] Prevents Rg7+.} 30. Rf5 $2 {[%emt 0:00:10]} ({Weaker is} 30. Nxf7 Bxe4 31. Re1 Rxg2+ 32. Kf1 R2xg3 33. hxg3 Bd5 34. Nxe5 Bxa2 $11) (30. Rxg8 $18 {White wants to mate with Rg7+.} Kxg8 31. Rf5) 30... Rxg3 $11 {[%emt 0:02:02]} 31. hxg3 {[%emt 0:00:38][%mdl 4096] Endgame KRB-KRN} b6 $2 {[%emt 0:00:15][%mdl 8192] Black is on the road to losing.} (31... Kg6 $11) 32. Nxf7 $18 {[%emt 0:00:45] White is clearly winning.} Bxe4 {[%emt 0:00:04] [#]} 33. Ng5+ $1 {[%emt 0:00:16][%mdl 512]} hxg5 {[%emt 0:00:19] KRB-KR} 34. f7 {[%emt 0:00:05]} Rxg2+ {[%emt 0:01:06]} 35. Kf1 {[%emt 0:00:55]} Bxf5 {[%emt 0:00:06]} 36. f8=Q {[%emt 0:00:13] KQ-KRB} Bh3 {[%emt 0:00:03]} 37. Qf7+ {[%emt 0:01:29]} Kh6 {[%emt 0:00:02]} 38. Qf6+ {[%emt 0:00:19]} Kh7 {[%emt 0:00:01]} 39. cxb6 {[%emt 0:01:09]} Rxg3+ {[%emt 0:00:12]} 40. Ke1 {[%emt 0:01:13] Strongly threatening b7.} Bg2 {[%emt 0:00:05]} 41. Qxe5 {[%emt 0:35:29]} h4 {[%emt 0:30:05]} 42. Kf2 {[%emt 0:03:00][%cal Oe5g3] White threatens Qxg3! and mate.} Bh1 {[%emt 0:01:43]} 43. c4 {[%emt 0:01:55][%cal Bc3c4,Bc4c5][%mdl 32] Hoping for c5.} Kh6 {[%emt 0:01:51]} 44. c5 {[%emt 0:00:31]} Rg2+ {[%emt 0:00:03]} 45. Ke3 {[%emt 0:01:27]} Rc2 {[%emt 0:00:25]} 46. Kd3 {[%emt 0:00:17]} Rc1 {[%emt 0:00:05]} 47. Kd2 {[%emt 0:00:14]} Rb1 {[%emt 0:00:31]} 48. Kc2 {[%emt 0:01:28]} Rb4 {[%emt 0:00:21]} 49. a3 {[%emt 0:00:00]} Rb5 {[%emt 0:00:00]} 50. Qd6+ {[%emt 0:00:00]} Kh5 {[%emt 0:00:00]} 51. Qd1+ {[%emt 0:00:00]} Kh6 {[%emt 0:00:00]} 52. Qxh1 {[%emt 0:03:25] Weighted Error Value: White=0.14 (very precise) /Black=0.52} 1-0

[Event "Prague Festival Open 2022"]
[Site "Prague"]
[Date "2022.06.12"]
[Round "4.5"]
[White "Chan, Kim Yew"]
[Black "Karthik Venkataraman"]
[Result "0-1"]
[ECO "D02"]
[WhiteElo "2316"]
[BlackElo "2480"]
[Annotator "TA"]
[PlyCount "80"]
[EventDate "2022.06.10"]
[EventType "swiss"]
[EventCountry "CZE"]
[SourceTitle "playchess.com"]
[Source "ChessBase"]
[SourceQuality "1"]
[TimeControl "40/5400+30:1800+30"]

{[%evp 10,80,15,20,15,9,2,0,-4,-4,0,-7,-12,-60,-18,-18,0,-11,0,0,0,0,-1,-11,-12,-51,-34,-36,-10,-22,0,-28,-19,-37,0,-14,0,-58,-49,-46,-7,-54,-20,-49,-41,-37,-13,-15,-10,-19,-13,-19,-19,-15,-11,-12,0,-36,0,-32,-19,-18,-14,-37,-8,-19,0,-7,0,0,0,-157,-155]} 1. Nf3 {[%emt 0:00:01]} d5 {[%emt 0:02:19]} 2. g3 {[%emt 0:00:05]} Nc6 {[%emt 0:00:10]} 3. d4 {[%emt 0:00:45]} Bf5 {[%emt 0:00:07]} 4. Bg2 {[%emt 0:00:36]} Nb4 {[%emt 0:00:07]} 5. Na3 {[%emt 0:00:06]} e6 {[%emt 0:00:04]} 6. O-O {[%emt 0:06:55]} Nc6 {[%emt 0:00:17] D02: 1 d4 d5 2 Nf3 sidelines, including 2...Nf6 3 g3 and 2...Nf6 3 Bf4.} 7. c4 {[%emt 0:03:27]} Bxa3 {[%emt 0:00:07]} 8. bxa3 {[%emt 0:00:03]} Be4 {[%emt 0:01:56] The position is equal.} 9. Qa4 {[%emt 0:14:56] [#]} Qd7 $146 {[%emt 0:02:21]} ({Predecessor:} 9... Nge7 10. Bd2 O-O 11. Rfc1 Bxf3 12. Bxf3 Nxd4 13. cxd5 Nxf3+ 14. exf3 Nxd5 15. Rab1 b6 {0-1 (57) Saraci,N (2486)-Pechac,J (2562) Terme Catez 2021}) 10. Rd1 {[%emt 0:00:41]} Nge7 {[%emt 0:00:20]} 11. Bf4 {[%emt 0:10:39]} (11. Bf1 $11) 11... O-O {[%emt 0:01:27]} 12. Rac1 {[%emt 0:07:33]} Rfd8 {[%emt 0:01:28]} 13. Ne1 {[%emt 0:02:35]} Bxg2 {[%emt 0:02:12]} 14. Kxg2 {[%emt 0:02:52]} f6 {[%emt 0:11:39]} 15. Nd3 {[%emt 0:06:35]} b6 {[%emt 0:01:40]} 16. Nb4 {[%emt 0:02:58]} Nxb4 {[%emt 0:01:29]} (16... Nxd4 {is more complex.} 17. Qxd7 Rxd7 18. Rxd4 c5) 17. Qxb4 {[%emt 0:05:46]} g5 {[%emt 0:13:35]} (17... Rac8 $5 {[%cal Rc7c5]}) 18. Bd2 {[%emt 0:01:16]} c6 {[%emt 0:02:21]} 19. a4 {[%emt 0:05:14]} Rab8 {[%emt 0:03:09]} 20. Be1 {[%emt 0:04:15]} Nf5 {[%emt 0:02:17][%cal Of5d4]} 21. c5 {[%emt 0:02:30]} b5 {[%emt 0:01:27]} 22. Qa3 {[%emt 0:04:12]} Re8 {[%emt 0:03:16][%cal Ob5b4]} 23. Bc3 {[%emt 0:02:11]} ({Better is} 23. axb5 $11 Rxb5 24. Bc3) 23... a6 {[%emt 0:00:26]} 24. Qb3 {[%emt 0:04:04]} Qf7 {[%emt 0:01:11]} 25. Qc2 {[%emt 0:01:13]} (25. axb5 $11 axb5 26. Re1) 25... Ra8 {[%emt 0:04:34]} 26. Ra1 {[%emt 0:01:20]} Qg6 {[%emt 0:00:35]} 27. Kg1 {[%emt 0:00:13]} Kf7 {[%emt 0:01:08]} 28. axb5 {[%emt 0:00:47]} axb5 {[%emt 0:00:06]} 29. a4 {[%emt 0:00:03]} bxa4 {[%emt 0:00:17]} 30. Rxa4 {[%emt 0:00:01]} Rxa4 {[%emt 0:00:50]} 31. Qxa4 {[%emt 0:00:01]} Ne7 {[%emt 0:00:06]} 32. Qb3 {[%emt 0:06:38]} Qe4 {[%emt 0:00:40]} 33. Rd2 {[%emt 0:01:10]} Ra8 {[%emt 0:09:21]} (33... h5 {keeps more tension.} 34. Ra2 Nf5 35. h3 Kg6) 34. Ra2 {[%emt 0:00:25]} Rxa2 {[%emt 0:00:49]} 35. Qxa2 $15 {[%emt 0:00:01][%mdl 4096] Endgame KQB-KQN} h5 {[%emt 0:01:00] ...Nf5 is the strong threat.} 36. Qd2 {[%emt 0:02:36]} Nf5 {[%emt 0:07:18] Threatens to win with ...Qb1+.} 37. h3 {[%emt 0:02:44]} Kg6 {[%emt 0:02:57]} 38. Qb2 {[%emt 0:00:29]} g4 {[%emt 0:01:46]} 39. h4 {[%emt 0:00:22]} Nh6 {[%emt 0:06:25]} 40. Bd2 $2 {[%emt 0:01:34] [#]} (40. Ba5 $11) 40... Qxe2 {[%emt 0:03:10] Weighted Error Value: White=0.22 (precise) /Black=0.12 (very precise)} 0-1

[Event "Prague Festival Open 2022"]
[Site "Prague"]
[Date "2022.06.12"]
[Round "4.6"]
[White "Domalchuk-Jonasson, Aleksandr"]
[Black "Raja Harshit"]
[Result "1/2-1/2"]
[ECO "E04"]
[WhiteElo "2190"]
[BlackElo "2479"]
[Annotator "TA"]
[PlyCount "147"]
[EventDate "2022.06.10"]
[EventType "swiss"]
[EventCountry "CZE"]
[SourceTitle "playchess.com"]
[Source "ChessBase"]
[SourceQuality "1"]
[TimeControl "40/5400+30:1800+30"]

{[%evp 16,147,-19,-18,-13,-24,-37,-38,-47,-101,-26,-116,-33,-112,-25,0,15,0,0,0,0,0,0,0,0,0,0,0,0,0,14,8,19,0,6,-59,-66,-57,-68,-75,16,9,33,-82,-82,-66,0,-82,-74,-56,-67,-73,-8,-85,-8,-78,0,-79,-66,-79,-78,-90,-102,-106,-39,-39,-39,-39,-39,-39,-39,-39,0,-8,-8,-8,-8,-39,-39,-39,-39,-53,-53,-53,-53,-53,-53,-53,-53,-53,-8,-199,-179,-109,-8,-75,-75,-82,0,0,0,0,0,-18,-18,-179,0,-180,-179,-179,0,0,0,0,0,0,0,-179,-179,-179,-179,-172,-172,-179,-172,-179,-172,-172,-172,-179,-179,-29983,-172,-172]} 1. d4 {[%emt 0:00:03]} Nf6 {[%emt 0:01:19]} 2. c4 {[%emt 0:00:18]} e6 {[%emt 0:00:07]} 3. Nf3 {[%emt 0:01:51]} d5 {[%emt 0:00:24]} 4. g3 {[%emt 0:01:00]} Bb4+ {[%emt 0:00:31]} 5. Bd2 {[%emt 0:00:45]} a5 {[%emt 0:00:07]} 6. Bg2 {[%emt 0:03:29]} O-O {[%emt 0:00:31]} 7. O-O {[%emt 0:04:05]} dxc4 {[%emt 0:01:38]} 8. Bxb4 {[%emt 0:13:02]} axb4 {[%emt 0:00:09]} 9. Ne5 $1 {[%emt 0:02:01]} Nc6 {[%emt 0:05:39] E04: Open Catalan: 5 Nf3.} 10. Nxc6 {[%emt 0:06:51]} bxc6 {[%emt 0:00:12]} 11. Bxc6 {[%emt 0:01:53]} Ra5 {[%emt 0:03:35] Black is slightly better.} 12. e3 {[%emt 0:10:03]} (12. a3 $15) 12... Ba6 {[%emt 0:05:19]} (12... e5 $17 {White must now prevent ...exd4.} 13. dxe5 Ng4) 13. Bf3 {[%emt 0:06:15]} (13. Qc1 $11) 13... Qd6 {[%emt 0:05:01]} (13... c3 $6 14. bxc3 Bxf1 15. cxb4 $11) (13... c5 $17 14. dxc5 Qc7) 14. Qc2 {[%emt 0:04:40] [#]} (14. Qc1 $15) 14... e5 $146 {[%emt 0:07:50]} ({Better is} 14... c3 $1 $17 15. bxc3 Bxf1 16. Kxf1 bxc3 17. Nxc3 c5) ({Predecessor:} 14... c5 15. Rd1 cxd4 16. Rxd4 Qc7 17. Nd2 e5 18. Rh4 Rc8 19. Bg4 b3 20. Qb1 Rd8 21. Ne4 Nxe4 22. Qxe4 g6 23. Qb1 c3 24. Qc1 Rd2 {0-1 (24) Danada,T (2280)-Hera,I (2601) Skalica 2021}) 15. Rd1 {[%emt 0:05:10]} b3 {[%emt 0:10:22]} 16. Qd2 {[%emt 0:01:34]} Rxa2 {[%emt 0:01:24]} 17. Rxa2 {[%emt 0:00:42]} bxa2 {[%emt 0:00:04]} 18. Nc3 {[%emt 0:00:20]} exd4 {[%emt 0:00:43]} 19. exd4 {[%emt 0:01:10]} Rb8 {[%emt 0:05:35]} 20. Ra1 {[%emt 0:02:08]} g6 {[%emt 0:02:56]} 21. Rxa2 {[%emt 0:02:27]} Kg7 {[%emt 0:00:16]} 22. Ra4 {[%emt 0:01:37]} Re8 {[%emt 0:03:29]} 23. Kg2 {[%emt 0:05:02]} h5 {[%emt 0:00:41]} 24. Qf4 {[%emt 0:07:25]} Qb6 {[%emt 0:02:25]} 25. Nd5 {[%emt 0:05:17]} ({White should play} 25. h4 $11) 25... Nxd5 $15 {[%emt 0:00:06]} 26. Bxd5 {[%emt 0:00:03]} Re7 {[%emt 0:00:25] And now ...Qb5 would win.} 27. Qf3 {[%emt 0:03:31]} Qb5 {[%emt 0:04:41]} (27... Bb5 $17 28. Ra2 c6) 28. Bc6 $11 {[%emt 0:01:57]} (28. Rxc4 $2 Rd7 29. Rc1 Rxd5 $19) 28... Qb6 {[%emt 0:01:36] [#]} 29. Bd5 {[%emt 0:00:25] Prevents Re6.} (29. Qc3 $1 $14 {keeps the upper hand.}) 29... Bb5 $17 {[%emt 0:04:21]} 30. Rb4 {[%emt 0:00:07]} f6 {[%emt 0:10:37]} (30... c5 $1 $15 31. dxc5 Qxc5 32. Qc3+ f6) 31. Qc3 {[%emt 0:02:00]} ({Of course not} 31. Bxc4 Bc6 32. Rxb6 Bxf3+ 33. Kxf3 cxb6 $17) (31. b3 $11 c5 32. Rxb5 Qxb5 33. Bxc4) 31... c5 {[%emt 0:00:34]} 32. dxc5 {[%emt 0:00:24]} Qxc5 {[%emt 0:00:05]} 33. Bf3 {[%emt 0:03:30]} Rd7 {[%emt 0:01:43]} (33... g5 $1 $17 {[%cal Rg5g4] aiming for ...g4.} 34. Rxb5 Qxb5 35. Bxh5 Rd7) 34. Qe1 {[%emt 0:02:03]} (34. Be4 $11) 34... Kf7 {[%emt 0:04:22]} (34... Bc6 $17 {( -> ...Bxf3+)} 35. Bxc6 Qxc6+ 36. f3 g5) 35. Kg1 {[%emt 0:00:19]} (35. h4 $1 $11) 35... Rd3 {[%emt 0:01:20]} (35... Rd8 $1 $17) 36. Be4 {[%emt 0:00:29]} (36. Be2 $11 Rb3 37. Rxb3 cxb3 38. Bxb5 Qxb5 39. Qc3) 36... Rd4 {[%emt 0:05:51][%cal Od4e4]} (36... Rd8 $5 {[%cal Rd8e8]} 37. Bf3 h4 38. gxh4 (38. Bg4 $2 f5 $19) 38... Rd6 $17) 37. Bf3 {[%emt 0:00:38][%cal Oe1e3]} Rd7 {[%emt 0:02:55]} 38. h4 {[%emt 0:00:27]} Rd3 {[%emt 0:00:27]} 39. Bg2 {[%emt 0:03:59]} Rxg3 {[%emt 0:00:41]} (39... g5 $1 $17 {[%cal Rg5h4] Threatens to win with ...gxh4.} 40. hxg5 fxg5 41. Rxb5 Qxb5) 40. Rxb5 $1 $15 {[%emt 0:00:19]} Rxg2+ $1 {[%emt 0:00:04]} 41. Kxg2 {[%emt 0:30:05]} Qxb5 $17 {[%emt 0:30:04][%mdl 4096] Endgame KQ-KQ} 42. Qe4 {[%emt 0:01:11]} Qa6 {[%emt 0:04:17]} 43. Qd5+ {[%emt 0:00:00]} Ke7 {[%emt 0:00:00]} 44. Qe4+ {[%emt 0:00:00]} Kd6 {[%emt 0:00:00] Hoping for ...Qc6.} 45. Qd4+ {[%emt 0:00:00]} Kc7 {[%emt 0:00:00]} 46. f3 {[%emt 0:00:00]} Qe6 {[%emt 0:00:00]} 47. Qc5+ {[%emt 0:00:00]} Kd7 {[%emt 0:00:00]} 48. Kf2 {[%emt 0:00:00] Against Qe2+} Qc6 {[%emt 0:00:00]} 49. Qd4+ {[%emt 0:00:00]} Ke6 {[%emt 0:00:00]} 50. Qe3+ $1 {[%emt 0:00:00]} Kf5 {[%emt 0:00:00]} 51. Qd4 {[%emt 0:00:00] Prevents Qd5.} g5 {[%emt 0:00:00]} 52. hxg5 {[%emt 0:00:00]} fxg5 {[%emt 0:00:00] ...g4 is the strong threat.} 53. Qh8 $2 {[%emt 0:00:00]} (53. Qg7 $1 $11 {and White has nothing to worry.}) 53... Qc5+ $1 $19 {[%emt 0:00:00]} 54. Kg2 {[%emt 0:00:00]} h4 {[%emt 0:00:00]} (54... Qd5 $1 $17 {[%cal Rd5d2] Strongly threatening ...Qd2+.} 55. Qxh5 Kf4 56. Qh2+ Ke3 57. Qg1+ Kd2) 55. Qg8 {[%emt 0:00:00]} (55. Qh7+ $11 {keeps the balance.} Ke6 56. Qg6+ Ke7 57. Qg7+ Kd8 58. Qc3) 55... Kf4 $17 {[%emt 0:00:00]} 56. Qe6 {[%emt 0:00:00][%csl Gf3][%cal Re6e4]} Qd4 {[%emt 0:00:00] Prevents Qe4+.} (56... h3+ $1 $17 57. Qxh3 Ke3) 57. Qg4+ $11 {[%emt 0:00:00]} Ke3 {[%emt 0:00:00]} 58. Qxg5+ {[%emt 0:00:00]} Qf4 {[%emt 0:00:00]} 59. Qc5+ {[%emt 0:00:31]} Kd2 {[%emt 0:00:00]} 60. Qf2+ {[%emt 0:04:50]} (60. Qd5+ $11 Kc1 61. Qe4 Qg5+ 62. Qg4) 60... Kc1 $2 {[%emt 0:00:00]} (60... Kd1 $1 $19 61. Qf1+ Kc2 62. Qe2+ Kb3) 61. Kh3 $2 {[%emt 0:00:25]} (61. Qe2 $1 $11 {and White stays safe.}) 61... Kb1 $1 $19 {[%emt 0:00:00]} 62. Kg2 {[%emt 0:05:09]} Ka2 $2 {[%emt 0:00:00]} (62... Ka1 $1 $19 63. Kh3 Ka2) 63. Kh3 $11 {[%emt 0:00:00]} Qf5+ {[%emt 0:00:00]} 64. Kh2 $1 {[%emt 0:00:00]} Qf4+ {[%emt 0:00:00]} (64... Qf6 $5 65. f4 Kb3 $11) 65. Kh3 {[%emt 0:00:00]} Kb1 $2 {[%emt 0:00:00]} (65... Qg3+ $11 66. Qxg3 hxg3) 66. Kg2 $19 {[%emt 0:00:00]} Ka1 $1 {[%emt 0:00:00]} 67. Kh3 {[%emt 0:00:00] [#]} Ka2 $1 {[%emt 0:00:00]} 68. Kg2 {[%emt 0:00:00] [#]} h3+ $1 {[%emt 0:00:00]} 69. Kxh3 {[%emt 0:01:08]} Qh6+ {[%emt 0:00:00]} 70. Kg4 {[%emt 0:00:41]} Qg7+ {[%emt 0:00:00]} 71. Kh5 {[%emt 0:00:15]} Qe5+ {[%emt 0:00:00]} 72. Kg6 {[%emt 0:00:44]} Qxb2 {[%emt 0:00:00]} 73. Qxb2+ {[%emt 0:00:31]} Kxb2 {[%emt 0:00:10]} 74. f4 {[%emt 0:00:02] Weighted Error Value: White=0.39/Black=0.30} 1/2-1/2